[Event "Live Chess"]
[Site "Chess.com"]
[Date "2023.05.20"]
[Round "-"]
[White "djw60"]
[Black "Horseymobile"]
[Result "1-0"]
[WhiteElo "2114"]
[BlackElo "1191"]
[TimeControl "300"]
[EndTime "12:21:56 PDT"]
[Termination "djw60 won on time"]

1. g3 {[%clk 0:04:55.6]} 1... d5 {[%clk 0:04:54.5]} 2. Bg2 {[%clk 0:04:54.3]}
2... Nf6 {[%clk 0:04:52.4]} 3. c4 {[%clk 0:04:52.9]} 3... e6 {[%clk 0:04:47.7]}
4. Nf3 {[%clk 0:04:50.7]} 4... Bd6 {[%clk 0:04:35.4]} 5. O-O {[%clk 0:04:48.2]}
5... O-O {[%clk 0:04:27.8]} 6. d4 {[%clk 0:04:46.4]} 6... dxc4 {[%clk
0:04:17.8]} 7. Qc2 {[%clk 0:04:44.1]} 7... Nc6 {[%clk 0:04:10]} 8. Qxc4 {[%clk
0:04:40.6]} 8... Re8 {[%clk 0:03:51.1]} 9. Nc3 {[%clk 0:04:31.2]} 9... Be7
{[%clk 0:03:26.3]} 10. e4 {[%clk 0:04:27.1]} 10... a6 {[%clk 0:03:12.6]} 11. Bf4
{[%clk 0:04:18.4]} 11... Bb4 {[%clk 0:03:02.7]} 12. Rfe1 {[%clk 0:04:06.3]}
12... Bxc3 {[%clk 0:02:52.5]} 13. bxc3 {[%clk 0:04:04.1]} 13... Na5 {[%clk
0:02:49.5]} 14. Qd3 {[%clk 0:03:51.9]} 14... Bd7 {[%clk 0:02:44.5]} 15. c4
{[%clk 0:03:48]} 15... b5 {[%clk 0:02:40.1]} 16. c5 {[%clk 0:03:44.1]} 16... Bc6
{[%clk 0:02:39.2]} 17. Ne5 {[%clk 0:03:37]} 17... Bb7 {[%clk 0:02:16.5]} 18.
Rab1 {[%clk 0:03:16.4]} 18... Qe7 {[%clk 0:02:02.4]} 19. a4 {[%clk 0:03:09.3]}
19... Nc6 {[%clk 0:01:57.4]} 20. axb5 {[%clk 0:03:05.7]} 20... Nxe5 {[%clk
0:01:56.5]} 21. Bxe5 {[%clk 0:03:03.3]} 21... Ng4 {[%clk 0:01:32.4]} 22. Bf4
{[%clk 0:02:48.8]} 22... e5 {[%clk 0:01:15.4]} 23. dxe5 {[%clk 0:02:41.1]} 23...
Nxe5 {[%clk 0:01:13.4]} 24. Bxe5 {[%clk 0:02:39.1]} 24... Qxe5 {[%clk 0:01:13]}
25. c6 {[%clk 0:02:36.5]} 25... Bc8 {[%clk 0:01:09.8]} 26. Qd5 {[%clk
0:02:24.3]} 26... Qc3 {[%clk 0:00:49.3]} 27. Rec1 {[%clk 0:02:17.7]} 27... Qa3
{[%clk 0:00:36.4]} 28. Ra1 {[%clk 0:02:14.3]} 28... Qe7 {[%clk 0:00:19.1]} 29.
bxa6 {[%clk 0:02:06.6]} 29... Bxa6 {[%clk 0:00:16.1]} 30. Qc5 {[%clk 0:01:56.4]}
30... Qxc5 {[%clk 0:00:12.7]} 31. Rxc5 {[%clk 0:01:54.7]} 31... Bd3 {[%clk
0:00:10.6]} 32. Rxa8 {[%clk 0:01:52]} 32... Rxa8 {[%clk 0:00:10.5]} 33. h4
{[%clk 0:01:49.1]} 33... Rd8 {[%clk 0:00:03.5]} 34. f4 {[%clk 0:01:40.6]} 34...
Re8 {[%clk 0:00:01.1]} 35. e5 {[%clk 0:01:36.4]} 35... f6 {[%clk 0:00:00.5]} 36.
exf6 {[%clk 0:01:33.4]} 1-0

[Event "Live Chess"]
[Site "Chess.com"]
[Date "2023.05.20"]
[Round "-"]
[White "ViktorTheCoolBoy"]
[Black "Geomorph"]
[Result "1-0"]
[WhiteElo "2527"]
[BlackElo "1238"]
[TimeControl "300"]
[EndTime "12:22:03 PDT"]
[Termination "ViktorTheCoolBoy won by resignation"]

1. d4 {[%clk 0:04:58.2]} 1... d5 {[%clk 0:04:59.1]} 2. c4 {[%clk 0:04:56.8]}
2... c6 {[%clk 0:04:57.5]} 3. Nf3 {[%clk 0:04:55]} 3... Nf6 {[%clk 0:04:56.5]}
4. Nc3 {[%clk 0:04:53.1]} 4... Qb6 {[%clk 0:04:53]} 5. e3 {[%clk 0:04:48.1]}
5... dxc4 {[%clk 0:04:49.9]} 6. Bxc4 {[%clk 0:04:46.6]} 6... Bf5 {[%clk
0:04:49.8]} 7. O-O {[%clk 0:04:43.9]} 7... e6 {[%clk 0:04:47.7]} 8. Re1 {[%clk
0:04:41.2]} 8... Be7 {[%clk 0:04:39.1]} 9. Ne5 {[%clk 0:04:37.9]} 9... Nbd7
{[%clk 0:04:36.5]} 10. e4 {[%clk 0:04:34.2]} 10... Bg6 {[%clk 0:04:34.1]} 11.
Bf4 {[%clk 0:04:30.3]} 11... Qxb2 {[%clk 0:04:20.1]} 12. Qd3 {[%clk 0:04:21.4]}
12... Nh5 {[%clk 0:03:49.8]} 13. Nxg6 {[%clk 0:04:16]} 13... hxg6 {[%clk
0:03:46.8]} 14. Be3 {[%clk 0:04:14.7]} 14... Qb6 {[%clk 0:03:34.8]} 15. d5
{[%clk 0:04:11.3]} 15... Qc7 {[%clk 0:03:09.3]} 16. dxe6 {[%clk 0:04:08.4]}
16... fxe6 {[%clk 0:03:02.1]} 17. Bxe6 {[%clk 0:04:06]} 17... Ne5 {[%clk
0:02:49.6]} 18. Qe2 {[%clk 0:04:00.3]} 18... Nf6 {[%clk 0:02:43.8]} 19. f4
{[%clk 0:03:53.7]} 19... Neg4 {[%clk 0:02:39.9]} 20. Bxg4 {[%clk 0:03:52]} 20...
Nxg4 {[%clk 0:02:30.5]} 21. Qxg4 {[%clk 0:03:51.9]} 21... g5 {[%clk 0:02:28.3]}
22. Rac1 {[%clk 0:03:44.8]} 22... Rd8 {[%clk 0:02:20.4]} 23. Nd5 {[%clk
0:03:41.8]} 23... Rxd5 {[%clk 0:02:12]} 24. exd5 {[%clk 0:03:40.2]} 24... Kf7
{[%clk 0:02:03.7]} 25. Qe6+ {[%clk 0:03:35.5]} 25... Kf8 {[%clk 0:02:01.6]} 26.
dxc6 {[%clk 0:03:34.2]} 26... gxf4 {[%clk 0:01:58.3]} 27. cxb7 {[%clk
0:03:30.5]} 27... Qxb7 {[%clk 0:01:52.5]} 28. Rc8+ {[%clk 0:03:29]} 1-0

[Event "Live Chess"]
[Site "Chess.com"]
[Date "2023.05.20"]
[Round "-"]
[White "lateforthesky"]
[Black "raminguy"]
[Result "1-0"]
[WhiteElo "2089"]
[BlackElo "1991"]
[TimeControl "300"]
[EndTime "12:22:08 PDT"]
[Termination "lateforthesky won by resignation"]

1. e4 {[%clk 0:04:56.2]} 1... e5 {[%clk 0:04:59.1]} 2. Nf3 {[%clk 0:04:54.9]}
2... Nc6 {[%clk 0:04:58.7]} 3. Bb5 {[%clk 0:04:53.8]} 3... Nf6 {[%clk 0:04:57]}
4. d3 {[%clk 0:04:52]} 4... Ne7 {[%clk 0:04:55.6]} 5. O-O {[%clk 0:04:48.4]}
5... c6 {[%clk 0:04:54.9]} 6. Ba4 {[%clk 0:04:46.6]} 6... Ng6 {[%clk 0:04:54.1]}
7. Nc3 {[%clk 0:04:42.8]} 7... a5 {[%clk 0:04:53.3]} 8. a3 {[%clk 0:04:40.5]}
8... Be7 {[%clk 0:04:50.8]} 9. d4 {[%clk 0:04:38.7]} 9... d6 {[%clk 0:04:49.3]}
10. dxe5 {[%clk 0:04:30.5]} 10... dxe5 {[%clk 0:04:47.9]} 11. Bb3 {[%clk
0:04:27.3]} 11... O-O {[%clk 0:04:45.9]} 12. Qxd8 {[%clk 0:04:18.5]} 12... Rxd8
{[%clk 0:04:44]} 13. Be3 {[%clk 0:04:17.4]} 13... Bg4 {[%clk 0:04:41.3]} 14. Ng5
{[%clk 0:03:51.5]} 14... Nh8 {[%clk 0:04:37.6]} 15. h3 {[%clk 0:03:47]} 15...
Bh5 {[%clk 0:04:36.3]} 16. h4 {[%clk 0:03:13.1]} 16... h6 {[%clk 0:04:34.8]} 17.
Nh3 {[%clk 0:03:11.6]} 17... Ng4 {[%clk 0:04:32.9]} 18. Bb6 {[%clk 0:03:08.2]}
18... Rd2 {[%clk 0:04:30.3]} 19. f3 {[%clk 0:02:59.7]} 19... Nf6 {[%clk
0:04:06.3]} 20. Be3 {[%clk 0:02:56.8]} 20... Rdd8 {[%clk 0:04:02.8]} 21. g4
{[%clk 0:02:52.5]} 21... Bxg4 {[%clk 0:03:47.5]} 22. fxg4 {[%clk 0:02:51]} 22...
Nxg4 {[%clk 0:03:46.8]} 23. Bb6 {[%clk 0:02:24.7]} 23... Rd7 {[%clk 0:03:42.4]}
24. Rad1 {[%clk 0:02:15.8]} 24... Rxd1 {[%clk 0:03:37.8]} 25. Rxd1 {[%clk
0:02:14.9]} 25... Bxh4 {[%clk 0:03:33]} 26. Rd7 {[%clk 0:02:12.6]} 26... Rb8
{[%clk 0:03:01.1]} 27. Kg2 {[%clk 0:01:58.5]} 27... Nf6 {[%clk 0:02:43.3]} 28.
Rd1 {[%clk 0:01:49]} 28... Ng4 {[%clk 0:02:23.4]} 29. Kf3 {[%clk 0:01:45.6]}
29... Nh2+ {[%clk 0:02:12.3]} 30. Kg2 {[%clk 0:01:44]} 30... Ng4 {[%clk
0:02:11.5]} 31. Nf2 {[%clk 0:01:37.5]} 31... Nxf2 {[%clk 0:01:59.3]} 32. Bxf2
{[%clk 0:01:36.5]} 32... Bxf2 {[%clk 0:01:54.4]} 33. Kxf2 {[%clk 0:01:36.4]}
33... h5 {[%clk 0:01:52.7]} 34. Rd7 {[%clk 0:01:31.7]} 34... Ng6 {[%clk
0:01:45.8]} 35. Bxf7+ {[%clk 0:01:29.5]} 35... Kh7 {[%clk 0:01:43.9]} 36. Bxg6+
{[%clk 0:01:24.2]} 36... Kxg6 {[%clk 0:01:42.9]} 37. Na4 {[%clk 0:01:21.9]}
37... Rf8+ {[%clk 0:01:35.4]} 38. Kg2 {[%clk 0:01:20.3]} 38... Rf4 {[%clk
0:01:30.6]} 39. Rxb7 {[%clk 0:01:17.7]} 39... Rxe4 {[%clk 0:01:29.5]} 40. Nc3
{[%clk 0:01:15.7]} 40... Rg4+ {[%clk 0:01:24.4]} 41. Kh3 {[%clk 0:01:13.8]}
41... Kf5 {[%clk 0:01:21.4]} 42. Rc7 {[%clk 0:01:11.1]} 42... g5 {[%clk
0:01:16]} 43. Rxc6 {[%clk 0:01:09.2]} 43... Rg1 {[%clk 0:01:12.1]} 44. Rc5
{[%clk 0:01:03]} 44... g4+ {[%clk 0:01:01.1]} 45. Kh2 {[%clk 0:01:01]} 45... Rc1
{[%clk 0:00:59.2]} 46. Ne2 {[%clk 0:00:59.1]} 46... Re1 {[%clk 0:00:52.2]} 47.
Ng3+ {[%clk 0:00:57.8]} 47... Kf4 {[%clk 0:00:44.6]} 48. Nxh5+ {[%clk 0:00:56]}
48... Kf3 {[%clk 0:00:44.1]} 49. b4 {[%clk 0:00:51.5]} 49... Re2+ {[%clk
0:00:42.4]} 50. Kg1 {[%clk 0:00:49.6]} 50... axb4 {[%clk 0:00:38.1]} 51. axb4
{[%clk 0:00:46.5]} 51... Rg2+ {[%clk 0:00:35.9]} 52. Kh1 {[%clk 0:00:44.3]}
52... Re2 {[%clk 0:00:26.4]} 53. Rc3+ {[%clk 0:00:38.9]} 53... Kf2 {[%clk
0:00:21.9]} 54. b5 {[%clk 0:00:36.2]} 54... e4 {[%clk 0:00:18.2]} 55. b6 {[%clk
0:00:34.5]} 55... e3 {[%clk 0:00:17.6]} 56. b7 {[%clk 0:00:30.6]} 56... g3
{[%clk 0:00:16.8]} 57. Nxg3 {[%clk 0:00:27.8]} 57... Kxg3 {[%clk 0:00:15.8]} 58.
b8=Q+ {[%clk 0:00:19.1]} 58... Kh3 {[%clk 0:00:11.8]} 59. Qh8+ {[%clk
0:00:17.8]} 59... Kg3 {[%clk 0:00:10.7]} 60. Qg7+ {[%clk 0:00:17]} 60... Kh3
{[%clk 0:00:09.2]} 61. Qh6+ {[%clk 0:00:16.1]} 61... Kg3 {[%clk 0:00:08.4]} 62.
Qg5+ {[%clk 0:00:14.9]} 62... Kh3 {[%clk 0:00:06.4]} 63. Qh5+ {[%clk 0:00:13]}
63... Kg3 {[%clk 0:00:05.6]} 64. Qxe2 {[%clk 0:00:12.2]} 1-0

[Event "Live Chess"]
[Site "Chess.com"]
[Date "2023.05.20"]
[Round "-"]
[White "gggoodgamebroski"]
[Black "MaximKris"]
[Result "0-1"]
[WhiteElo "338"]
[BlackElo "1862"]
[TimeControl "300"]
[EndTime "12:22:12 PDT"]
[Termination "MaximKris won by resignation"]

1. d4 {[%clk 0:04:52.9]} 1... d5 {[%clk 0:04:55.7]} 2. e3 {[%clk 0:04:52.8]}
2... Nf6 {[%clk 0:04:54.6]} 3. c3 {[%clk 0:04:52.7]} 3... Bf5 {[%clk 0:04:53]}
4. f4 {[%clk 0:04:52.6]} 4... e6 {[%clk 0:04:52.2]} 5. g4 {[%clk 0:04:52.5]}
5... Bxg4 {[%clk 0:04:51]} 6. h3 {[%clk 0:04:52.4]} 6... Bxd1 {[%clk 0:04:50]}
7. Kf2 {[%clk 0:04:52.3]} 7... Ne4+ {[%clk 0:04:49]} 8. Ke1 {[%clk 0:04:50.2]}
8... Qh4+ {[%clk 0:04:47.8]} 9. Kxd1 {[%clk 0:04:48.4]} 9... Nf2+ {[%clk
0:04:46.2]} 10. Ke2 {[%clk 0:04:44.2]} 10... Nxh1 {[%clk 0:04:45.4]} 11. Kd3
{[%clk 0:04:43.3]} 0-1

[Event "Live Chess"]
[Site "Chess.com"]
[Date "2023.05.20"]
[Round "-"]
[White "ElectricFalcon"]
[Black "martynstanley"]
[Result "1-0"]
[WhiteElo "1071"]
[BlackElo "990"]
[TimeControl "300"]
[EndTime "12:22:13 PDT"]
[Termination "ElectricFalcon won by checkmate"]

1. d4 {[%clk 0:04:59.8]} 1... e6 {[%clk 0:04:58.1]} 2. c4 {[%clk 0:04:59.7]}
2... d5 {[%clk 0:04:57.1]} 3. cxd5 {[%clk 0:04:58.4]} 3... exd5 {[%clk
0:04:56.1]} 4. Nf3 {[%clk 0:04:58.1]} 4... c5 {[%clk 0:04:55.5]} 5. e3 {[%clk
0:04:56.3]} 5... Nc6 {[%clk 0:04:53.8]} 6. Bb5 {[%clk 0:04:54.5]} 6... Qa5+
{[%clk 0:04:52.2]} 7. Nc3 {[%clk 0:04:51.7]} 7... a6 {[%clk 0:04:46.8]} 8. Bxc6+
{[%clk 0:04:51]} 8... bxc6 {[%clk 0:04:45.6]} 9. dxc5 {[%clk 0:04:48.8]} 9...
Bxc5 {[%clk 0:04:44.1]} 10. O-O {[%clk 0:04:47.3]} 10... Bb7 {[%clk 0:04:43.1]}
11. Bd2 {[%clk 0:04:46.6]} 11... Qc7 {[%clk 0:04:39.4]} 12. e4 {[%clk
0:04:42.4]} 12... dxe4 {[%clk 0:04:36.8]} 13. Nxe4 {[%clk 0:04:40.4]} 13...
Bxf2+ {[%clk 0:04:34.9]} 14. Nxf2 {[%clk 0:04:37.3]} 14... Ne7 {[%clk 0:04:34]}
15. Bc3 {[%clk 0:04:34.2]} 15... O-O {[%clk 0:04:32.5]} 16. Qd4 {[%clk 0:04:26]}
16... f6 {[%clk 0:04:29.4]} 17. Qc4+ {[%clk 0:04:18.8]} 17... Rf7 {[%clk
0:04:24.8]} 18. Rfe1 {[%clk 0:04:14.6]} 18... Re8 {[%clk 0:04:22.6]} 19. Ne4
{[%clk 0:04:13.3]} 19... c5 {[%clk 0:04:20]} 20. Qxc5 {[%clk 0:04:03.2]} 20...
Qxc5+ {[%clk 0:04:16.7]} 21. Nxc5 {[%clk 0:04:03.1]} 21... Bxf3 {[%clk
0:04:14.6]} 22. gxf3 {[%clk 0:04:00.8]} 22... Kf8 {[%clk 0:04:09.2]} 23. Nb7
{[%clk 0:03:59.8]} 23... Nc6 {[%clk 0:04:07.7]} 24. Nd6 {[%clk 0:03:56.8]} 24...
Ne5 {[%clk 0:04:05.5]} 25. Nxe8 {[%clk 0:03:48.8]} 25... Kxe8 {[%clk 0:04:04.3]}
26. Bxe5 {[%clk 0:03:47.9]} 26... fxe5 {[%clk 0:04:03.6]} 27. Rxe5+ {[%clk
0:03:47.6]} 27... Kd7 {[%clk 0:04:01.9]} 28. Rd1+ {[%clk 0:03:46]} 28... Kc7
{[%clk 0:04:00.3]} 29. Re3 {[%clk 0:03:42.3]} 29... Rf6 {[%clk 0:03:58.5]} 30.
Rc3+ {[%clk 0:03:41]} 30... Kb6 {[%clk 0:03:57.2]} 31. Rd4 {[%clk 0:03:39.2]}
31... Rg6+ {[%clk 0:03:56]} 32. Kf2 {[%clk 0:03:38.1]} 32... Rh6 {[%clk
0:03:54.4]} 33. Rb4+ {[%clk 0:03:37.2]} 33... Ka7 {[%clk 0:03:51.1]} 34. Rc7+
{[%clk 0:03:35.4]} 34... Ka8 {[%clk 0:03:47.4]} 35. Rxg7 {[%clk 0:03:34.6]}
35... Rxh2+ {[%clk 0:03:45.9]} 36. Kg3 {[%clk 0:03:33]} 36... Rc2 {[%clk
0:03:43.7]} 37. Rf4 {[%clk 0:03:31.8]} 37... Kb8 {[%clk 0:03:40.4]} 38. Rf6
{[%clk 0:03:22.2]} 38... Rc7 {[%clk 0:03:37.6]} 39. Rb6+ {[%clk 0:03:14.4]}
39... Kc8 {[%clk 0:03:35.8]} 40. Rg8+ {[%clk 0:03:12.5]} 40... Kd7 {[%clk
0:03:34.7]} 41. Rg7+ {[%clk 0:03:10.9]} 41... Kc8 {[%clk 0:03:33.4]} 42. Rxc7+
{[%clk 0:03:09.6]} 42... Kxc7 {[%clk 0:03:32.8]} 43. Re6 {[%clk 0:03:01.3]}
43... a5 {[%clk 0:03:30.9]} 44. f4 {[%clk 0:03:00.6]} 44... Kd7 {[%clk
0:03:29.9]} 45. Re1 {[%clk 0:02:59.4]} 45... Kd6 {[%clk 0:03:26.7]} 46. f5
{[%clk 0:02:59.3]} 46... Kd5 {[%clk 0:03:25.7]} 47. f6 {[%clk 0:02:59.2]} 47...
Kd4 {[%clk 0:03:25.1]} 48. f7 {[%clk 0:02:59.1]} 48... Kd3 {[%clk 0:03:24.6]}
49. f8=Q {[%clk 0:02:58.9]} 49... Kc2 {[%clk 0:03:24.2]} 50. Qf5+ {[%clk
0:02:47.7]} 50... Kxb2 {[%clk 0:03:22.6]} 51. Rb1+ {[%clk 0:02:42.1]} 51... Ka3
{[%clk 0:03:21.3]} 52. Qxa5# {[%clk 0:02:39.2]} 1-0

[Event "Live Chess"]
[Site "Chess.com"]
[Date "2023.05.20"]
[Round "-"]
[White "elizaveta_frundina"]
[Black "ramses-IIG"]
[Result "1-0"]
[WhiteElo "1565"]
[BlackElo "794"]
[TimeControl "300"]
[EndTime "12:22:16 PDT"]
[Termination "elizaveta_frundina won by checkmate"]

1. e4 {[%clk 0:04:54.7]} 1... d5 {[%clk 0:04:59.9]} 2. exd5 {[%clk 0:04:53.5]}
2... Qxd5 {[%clk 0:04:59.8]} 3. Nc3 {[%clk 0:04:51.9]} 3... Qe6+ {[%clk
0:04:59.7]} 4. Qe2 {[%clk 0:04:48.8]} 4... Qg6 {[%clk 0:04:59.6]} 5. Nd5 {[%clk
0:04:43.2]} 5... Na6 {[%clk 0:04:50.6]} 6. Qe3 {[%clk 0:04:31]} 6... e6 {[%clk
0:04:43]} 7. Bxa6 {[%clk 0:04:28.5]} 7... Qxc2 {[%clk 0:04:35.3]} 8. Nxc7+
{[%clk 0:04:19.6]} 8... Qxc7 {[%clk 0:04:33.8]} 9. Bb5+ {[%clk 0:04:17.7]} 9...
Bd7 {[%clk 0:04:31]} 10. Bxd7+ {[%clk 0:04:14.7]} 10... Qxd7 {[%clk 0:04:29.9]}
11. Nf3 {[%clk 0:04:11.3]} 11... b6 {[%clk 0:04:21.9]} 12. Qe4 {[%clk 0:04:08]}
12... Rd8 {[%clk 0:04:11]} 13. O-O {[%clk 0:04:04.4]} 13... Nf6 {[%clk
0:04:10.5]} 14. Qh4 {[%clk 0:03:56.9]} 14... Be7 {[%clk 0:04:05.4]} 15. Ne5
{[%clk 0:03:52.6]} 15... Qd5 {[%clk 0:03:56.5]} 16. Qg3 {[%clk 0:03:46]} 16...
Ne4 {[%clk 0:03:47.4]} 17. Qxg7 {[%clk 0:03:39.3]} 17... Bf6 {[%clk 0:03:38.8]}
18. Qxf7# {[%clk 0:03:36.8]} 1-0

[Event "Live Chess"]
[Site "Chess.com"]
[Date "2023.05.20"]
[Round "-"]
[White "Ayursworld"]
[Black "Driftboard"]
[Result "0-1"]
[WhiteElo "1336"]
[BlackElo "755"]
[TimeControl "300"]
[EndTime "12:22:32 PDT"]
[Termination "Driftboard won by checkmate"]

1. e4 {[%clk 0:04:58.8]} 1... e5 {[%clk 0:04:59.5]} 2. Nf3 {[%clk 0:04:57.3]}
2... Nc6 {[%clk 0:04:58.8]} 3. d4 {[%clk 0:04:55.6]} 3... exd4 {[%clk
0:04:56.6]} 4. Bc4 {[%clk 0:04:54.4]} 4... Nf6 {[%clk 0:04:54.5]} 5. O-O {[%clk
0:04:52.8]} 5... Nxe4 {[%clk 0:04:53]} 6. Re1 {[%clk 0:04:48.7]} 6... d5 {[%clk
0:04:45.2]} 7. Bb5 {[%clk 0:04:45.5]} 7... Bd7 {[%clk 0:04:41.9]} 8. Bxc6 {[%clk
0:04:41.1]} 8... Bxc6 {[%clk 0:04:34.1]} 9. Ng5 {[%clk 0:04:38]} 9... Be7 {[%clk
0:04:03]} 10. Nxe4 {[%clk 0:04:35.2]} 10... dxe4 {[%clk 0:03:49.1]} 11. Na3
{[%clk 0:04:32.2]} 11... Bxa3 {[%clk 0:03:47]} 12. bxa3 {[%clk 0:04:30]} 12...
O-O {[%clk 0:03:45.9]} 13. Bb2 {[%clk 0:04:25.9]} 13... Re8 {[%clk 0:03:42.9]}
14. Bxd4 {[%clk 0:04:24.5]} 14... h6 {[%clk 0:03:35.7]} 15. c3 {[%clk
0:04:19.5]} 15... b6 {[%clk 0:03:28.7]} 16. Qg4 {[%clk 0:04:17.3]} 16... Qg5
{[%clk 0:03:11.1]} 17. Qxg5 {[%clk 0:04:06.3]} 17... hxg5 {[%clk 0:03:04.2]} 18.
g3 {[%clk 0:04:02.5]} 18... f5 {[%clk 0:03:00.1]} 19. Be3 {[%clk 0:03:52.7]}
19... f4 {[%clk 0:02:49.3]} 20. gxf4 {[%clk 0:03:49.6]} 20... gxf4 {[%clk
0:02:48.3]} 21. Bxf4 {[%clk 0:03:48.8]} 21... Rac8 {[%clk 0:02:47.3]} 22. Bg3
{[%clk 0:03:47.3]} 22... Re7 {[%clk 0:02:33]} 23. Rad1 {[%clk 0:03:44.6]} 23...
Kf7 {[%clk 0:02:25]} 24. Rd4 {[%clk 0:03:32]} 24... Kf6 {[%clk 0:02:09.3]} 25.
Bh4+ {[%clk 0:03:26.8]} 25... g5 {[%clk 0:02:06.6]} 26. Bg3 {[%clk 0:03:25.5]}
26... Kf5 {[%clk 0:02:04.3]} 27. Rc4 {[%clk 0:03:23.4]} 27... Bd5 {[%clk
0:02:01.2]} 28. Rd4 {[%clk 0:03:21]} 28... Bxa2 {[%clk 0:01:58.5]} 29. Ra1
{[%clk 0:03:11.8]} 29... Bb3 {[%clk 0:01:54.5]} 30. Rb1 {[%clk 0:03:10.2]} 30...
Ba4 {[%clk 0:01:50.3]} 31. Rxa4 {[%clk 0:03:06.3]} 31... e3 {[%clk 0:01:43.9]}
32. fxe3 {[%clk 0:03:01.6]} 32... Rxe3 {[%clk 0:01:43.4]} 33. Rb5+ {[%clk
0:02:59.5]} 33... Kg6 {[%clk 0:01:38]} 34. Rc4 {[%clk 0:02:57.8]} 34... c6
{[%clk 0:01:28.1]} 35. Rb1 {[%clk 0:02:46]} 35... c5 {[%clk 0:01:23.5]} 36. Bf2
{[%clk 0:02:34.2]} 36... Re2 {[%clk 0:01:09.6]} 37. Rd1 {[%clk 0:02:26]} 37...
Ra2 {[%clk 0:01:05.2]} 38. Rd6+ {[%clk 0:02:23.4]} 38... Kg7 {[%clk 0:00:59.9]}
39. Rg4 {[%clk 0:02:20.5]} 39... Rxa3 {[%clk 0:00:53]} 40. Rxg5+ {[%clk
0:02:19.5]} 40... Kf8 {[%clk 0:00:50.6]} 41. Rf5+ {[%clk 0:02:08.1]} 41... Ke7
{[%clk 0:00:38.7]} 42. Rd3 {[%clk 0:02:06.1]} 42... Rg8+ {[%clk 0:00:23.5]} 43.
Kh1 {[%clk 0:02:02]} 43... Ra1+ {[%clk 0:00:19]} 44. Rd1 {[%clk 0:01:52.8]}
44... Rxd1+ {[%clk 0:00:17.7]} 45. Be1 {[%clk 0:01:48.6]} 45... Rxe1+ {[%clk
0:00:17]} 46. Rf1 {[%clk 0:01:46.5]} 46... Rxf1# {[%clk 0:00:16.3]} 0-1

[Event "Live Chess"]
[Site "Chess.com"]
[Date "2023.05.20"]
[Round "-"]
[White "WelshTiger"]
[Black "blunderabit"]
[Result "1-0"]
[WhiteElo "2405"]
[BlackElo "1889"]
[TimeControl "300"]
[EndTime "12:22:33 PDT"]
[Termination "WelshTiger won by resignation"]

1. e4 {[%clk 0:04:51.8]} 1... c5 {[%clk 0:04:57.8]} 2. Nf3 {[%clk 0:04:49.9]}
2... d6 {[%clk 0:04:56.7]} 3. c3 {[%clk 0:04:48.8]} 3... Nf6 {[%clk 0:04:53.4]}
4. h3 {[%clk 0:04:48]} 4... Nc6 {[%clk 0:04:49.9]} 5. Bd3 {[%clk 0:04:46.9]}
5... d5 {[%clk 0:04:46.2]} 6. e5 {[%clk 0:04:43.2]} 6... Nd7 {[%clk 0:04:44.3]}
7. Qe2 {[%clk 0:04:40.8]} 7... e6 {[%clk 0:04:41.2]} 8. Bc2 {[%clk 0:04:38]}
8... Qc7 {[%clk 0:04:36.7]} 9. d4 {[%clk 0:04:37]} 9... cxd4 {[%clk 0:04:34.5]}
10. cxd4 {[%clk 0:04:36.9]} 10... Nb4 {[%clk 0:04:27.4]} 11. Nc3 {[%clk
0:04:34.3]} 11... Nxc2+ {[%clk 0:04:19.2]} 12. Qxc2 {[%clk 0:04:34.2]} 12... b6
{[%clk 0:04:12.4]} 13. O-O {[%clk 0:04:31.2]} 13... Ba6 {[%clk 0:04:10]} 14. Re1
{[%clk 0:04:30.4]} 14... Rc8 {[%clk 0:04:05.8]} 15. Bg5 {[%clk 0:04:19.4]} 15...
Be7 {[%clk 0:04:01.8]} 16. Bxe7 {[%clk 0:04:17.9]} 16... Kxe7 {[%clk 0:04:00.7]}
17. Qd2 {[%clk 0:04:17.4]} 17... h6 {[%clk 0:03:57.1]} 18. Rac1 {[%clk
0:04:15.5]} 18... Qb7 {[%clk 0:03:48.5]} 19. Qf4 {[%clk 0:04:13]} 19... g5
{[%clk 0:03:19.3]} 20. Qe3 {[%clk 0:04:05.1]} 20... Nf8 {[%clk 0:02:58.1]} 21.
h4 {[%clk 0:03:46]} 21... g4 {[%clk 0:02:48.8]} 22. Nh2 {[%clk 0:03:44.5]} 22...
Rg8 {[%clk 0:02:43.2]} 23. Qxh6 {[%clk 0:03:42.1]} 23... Nd7 {[%clk 0:02:39.2]}
24. Re3 {[%clk 0:03:32.6]} 24... Rg6 {[%clk 0:02:37.8]} 25. Qf4 {[%clk
0:03:31.3]} 25... Rh8 {[%clk 0:02:27.8]} 26. g3 {[%clk 0:03:19.6]} 26... Rhg8
{[%clk 0:02:17.2]} 27. h5 {[%clk 0:03:04.3]} 27... Rg5 {[%clk 0:02:01.3]} 28. h6
{[%clk 0:03:03.1]} 28... Rh5 {[%clk 0:01:59.8]} 29. Nxg4 {[%clk 0:03:01.5]}
29... Qb8 {[%clk 0:01:49.4]} 30. Nf6 {[%clk 0:02:57.8]} 30... Rf5 {[%clk
0:01:35.9]} 31. Ncxd5+ {[%clk 0:02:56.1]} 31... Kd8 {[%clk 0:01:05.5]} 32. Nxd7
{[%clk 0:02:48.8]} 32... Kxd7 {[%clk 0:00:49.9]} 33. Nf6+ {[%clk 0:02:47.3]}
33... Kd8 {[%clk 0:00:26.9]} 34. h7 {[%clk 0:02:46.4]} 34... Rh8 {[%clk
0:00:15.5]} 35. Qg4 {[%clk 0:02:44.9]} 35... Ke7 {[%clk 0:00:11.1]} 36. d5
{[%clk 0:02:38.4]} 1-0

[Event "Live Chess"]
[Site "Chess.com"]
[Date "2023.05.20"]
[Round "-"]
[White "ChippyChill"]
[Black "flyingpuffins"]
[Result "0-1"]
[WhiteElo "594"]
[BlackElo "1975"]
[TimeControl "300"]
[EndTime "12:22:35 PDT"]
[Termination "flyingpuffins won by resignation"]

1. d4 {[%clk 0:04:52.8]} 1... d5 {[%clk 0:04:58.8]} 2. c4 {[%clk 0:04:49.3]}
2... c6 {[%clk 0:04:57.6]} 3. Qa4 {[%clk 0:04:29.2]} 3... dxc4 {[%clk
0:04:54.8]} 4. Qxc4 {[%clk 0:04:22]} 4... Nf6 {[%clk 0:04:50.5]} 5. Nc3 {[%clk
0:04:15.2]} 5... Be6 {[%clk 0:04:46.5]} 6. Qd3 {[%clk 0:04:03.7]} 6... Nd5
{[%clk 0:04:44]} 7. Nxd5 {[%clk 0:04:01.1]} 7... Bxd5 {[%clk 0:04:42.7]} 8. Bf4
{[%clk 0:03:55.2]} 8... g6 {[%clk 0:04:33.3]} 9. Bxb8 {[%clk 0:03:52.5]} 9...
Rxb8 {[%clk 0:04:31.5]} 10. O-O-O {[%clk 0:03:40.1]} 10... Bg7 {[%clk
0:04:25.3]} 11. e4 {[%clk 0:03:20.9]} 11... Be6 {[%clk 0:04:21]} 12. d5 {[%clk
0:03:09.6]} 12... cxd5 {[%clk 0:04:17.8]} 13. exd5 {[%clk 0:03:07.1]} 13... Bf5
{[%clk 0:04:17.2]} 14. Qd2 {[%clk 0:02:58]} 14... Rc8+ {[%clk 0:04:10.7]} 0-1